bitfinex/quotes_SOLUSD_20240620
["timestamp","ask_amount","ask_price","bid_price","bid_amount"]
[1718866637474,16.561,135.63,135.56,8.68302935]
[1718866637652,7.3748,135.6,135.56,8.68302935]
[1718866638267,7.3743,135.61,135.56,8.68302935]
[1718866638575,7.3738,135.62,135.56,8.68302935]
[1718866638879,7.374,135.61,135.56,16.05942935]
[1718866639258,7.374,135.61,135.56,8.68302935]
[1718866639457,7.3736,135.62,135.56,16.05942935]
[1718866640281,7.3736,135.62,135.57,7.3762]
[1718866640498,7.3736,135.62,135.56,16.05952935]
[1718866641061,7.3741,135.61,135.56,8.68302935]
[1718866641256,7.3756,135.59,135.56,8.68302935]
[1718866641579,7.3747,135.6,135.56,8.68302935]
[1718866641779,7.3752,135.59,135.56,8.68302935]
[1718866642575,7.3745,135.61,135.56,8.68302935]
[1718866642881,7.3745,135.61,135.56,16.05962935]
[1718866643266,34.9947,135.63,135.56,8.68302935]
[1718866643572,7.3742,135.61,135.56,8.68302935]
[1718866643954,7.3748,135.6,135.56,8.68302935]
[1718866644985,7.3743,135.61,135.56,8.68302935]
[1718866645290,7.3743,135.61,135.56,9.08757425]
[1718866645460,43.26332848,135.64,135.58,7.3753]
[1718866645660,7.3733,135.63,135.59,0.4044554]
[1718866645858,22.0326,135.66,135.59,0.4044554]
[1718866645859,7.3726,135.64,135.59,7.3751]
[1718866646061,22.0326,135.66,135.58,7.3754]
[1718866646364,7.3736,135.62,135.57,7.3759]
[1718866646684,7.374,135.62,135.56,24.46042935]
[1718866646858,7.374,135.62,135.57,7.376]
[1718866647371,7.3741,135.61,135.56,31.83692935]
[1718866647771,7.3737,135.62,135.56,31.83692935]
[1718866648784,7.3727,135.64,135.56,24.46042935]
[1718866648983,21.28332848,135.65,135.58,7.3754]
[1718866648984,7.3731,135.63,135.58,7.3754]
[1718866649187,7.3736,135.62,135.57,7.376]
[1718866651083,7.3741,135.61,135.56,31.83692935]
[1718866651379,7.3741,135.61,135.56,24.46042935]
[1718866651586,7.3741,135.61,135.56,31.83702935]
[1718866652868,7.3741,135.61,135.56,24.46042935]
[1718866653074,21.98,135.64,135.56,8.68302935]
[1718866653075,7.3748,135.6,135.56,8.68302935]
[1718866654179,7.3752,135.59,135.56,8.68302935]
[1718866654390,39.71612848,135.63,135.56,8.68302935]
[1718866654581,7.3744,135.61,135.56,8.68302935]
[1718866654975,7.3744,135.61,135.56,16.05972935]
[1718866655372,7.3737,135.62,135.56,16.05952935]
[1718866657388,7.33,135.6,135.56,16.05952935]
[1718866657687,7.3741,135.61,135.56,16.05952935]
[1718866657890,7.33,135.6,135.56,16.05952935]
[1718866658077,7.3741,135.61,135.56,16.05952935]
[1718866658274,7.33,135.59,135.56,16.05952935]
[1718866659090,7.3741,135.61,135.56,8.68302935]
[1718866659395,7.33,135.59,135.56,8.68302935]
[1718866660389,7.3746,135.6,135.56,8.68302935]
[1718866660698,7.33,135.59,135.56,8.68302935]
[1718866661385,7.3743,135.61,135.56,16.05942935]
[1718866661594,7.33,135.59,135.56,8.68302935]
[1718866662781,7.33,135.59,135.56,16.05962935]
[1718866663095,7.3743,135.61,135.56,16.05962935]
[1718866663297,7.33,135.58,135.56,8.68302935]
[1718866663670,7.3742,135.61,135.56,16.05952935]
[1718866663886,7.33,135.58,135.56,16.05952935]
[1718866664174,7.33,135.58,135.56,8.68302935]
[1718866664486,14.7047,135.6,135.56,8.68302935]
[1718866664690,7.33,135.6,135.56,16.05972935]
[1718866665189,7.3752,135.59,135.56,8.68302935]
[1718866665489,7.33,135.58,135.56,8.68302935]
[1718866666784,7.3752,135.59,135.56,8.68302935]
[1718866666977,39.71692848,135.63,135.56,8.68302935]
[1718866667178,7.33,135.59,135.56,8.68302935]
[1718866670791,7.3743,135.61,135.56,16.05942935]
[1718866670993,7.3741,135.61,135.56,16.05952935]
[1718866671295,7.33,135.59,135.56,8.68302935]
[1718866671697,7.33,135.58,135.56,8.68302935]
[1718866672075,7.3753,135.59,135.56,8.68302935]
[1718866672407,7.33,135.58,135.56,8.68302935]
[1718866672990,7.3747,135.6,135.56,8.68302935]
[1718866673190,7.3749,135.6,135.56,8.68302935]
[1718866673577,7.33,135.59,135.56,8.68302935]
[1718866673779,7.33,135.58,135.56,8.68302935]
[1718866675891,7.3749,135.6,135.56,8.68302935]
[1718866676088,7.33,135.59,135.56,8.68302935]
[1718866676471,7.66398512,135.64,135.56,8.68302935]
[1718866676677,7.3733,135.63,135.56,16.01302935]
[1718866676877,7.33,135.61,135.57,8.19659634]
[1718866677085,7.33,135.61,135.57,7.3759]
[1718866677702,7.66398512,135.64,135.59,7.3746]
[1718866677883,35.27496577,135.66,135.59,7.33]
[1718866678073,7.33,135.64,135.61,7.3739]
[1718866678277,7.33,135.64,135.6,7.3744]
[1718866678798,14.7024,135.64,135.59,7.3749]
[1718866679096,7.33,135.63,135.61,7.3737]
[1718866679289,26.09163857,135.68,135.61,7.33]
[1718866679495,14.7022,135.65,135.6,7.3745]
[1718866679693,7.33,135.64,135.6,7.3745]
[1718866680091,7.3709,135.67,135.61,7.374]
[1718866680291,14.7017,135.66,135.6,7.33]
[1718866680597,14.702,135.65,135.6,14.7043]
[1718866680802,7.372,135.65,135.6,7.3743]
[1718866681002,7.33,135.64,135.6,7.3743]
[1718866681495,14.7024,135.64,135.59,7.375]
[1718866681697,7.33,135.61,135.58,15.508]
[1718866682107,14.7042,135.61,135.58,15.508]
[1718866682589,7.33,135.61,135.58,15.508]
[1718866683992,7.33,135.6,135.56,16.05962935]
[1718866684196,7.3737,135.62,135.57,7.3761]
[1718866684397,7.3733,135.63,135.56,16.01302935]
[1718866684582,7.3733,135.63,135.58,7.3756]
[1718866684778,7.33,135.61,135.58,7.3756]
[1718866685036,7.33,135.61,135.57,7.376]
[1718866686612,7.33,135.61,135.56,8.68302935]
[1718866686911,7.33,135.6,135.56,8.68302935]
[1718866687116,14.7046,135.6,135.56,8.68302935]
[1718866687492,7.3741,135.61,135.56,16.05972935]
[1718866687709,7.33,135.6,135.56,16.05972935]
[1718866688010,7.33,135.6,135.57,7.3762]
[1718866688185,7.33,135.6,135.56,16.05952935]
[1718866688392,7.33,135.61,135.56,16.05952935]
[1718866688599,7.3737,135.62,135.57,7.3761]
[1718866688909,7.33,135.61,135.57,7.3761]
[1718866689493,7.3736,135.62,135.57,7.376]
[1718866689698,7.33,135.61,135.57,7.376]
[1718866690996,7.3727,135.64,135.59,7.3751]
[1718866691201,7.33,135.63,135.59,7.3751]
[1718866691400,14.7031,135.63,135.58,14.7056]
[1718866691712,7.33,135.63,135.58,14.7056]
[1718866692547,14.7032,135.63,135.58,14.7056]
[1718866692805,14.7032,135.63,135.58,7.3756]
[1718866693011,14.7032,135.63,135.58,14.7056]
[1718866695211,7.3732,135.63,135.58,14.7056]
[1718866695427,14.7032,135.63,135.58,14.7056]
[1718866695725,7.3732,135.63,135.58,14.7056]
[1718866696011,14.7032,135.63,135.58,14.7056]
[1718866696207,14.7032,135.63,135.58,7.33]
[1718866697701,14.7032,135.63,135.58,14.7055]
[1718866698607,7.33,135.61,135.58,7.3755]
[1718866698916,7.33,135.61,135.57,7.376]
[1718866699418,14.7041,135.61,135.56,16.05962935]
[1718866699599,14.7047,135.6,135.56,8.68302935]
[1718866699801,7.33,135.6,135.56,16.05972935]
[1718866701442,10.88412852,135.57,135.56,16.05972935]
[1718866701727,7.33,135.6,135.56,16.05972935]
[1718866704030,14.7042,135.61,135.56,16.05972935]
[1718866704527,14.7042,135.61,135.56,23.38972935]
[1718866705230,7.33,135.61,135.56,16.01302935]
[1718866705429,10.88756569,135.57,135.56,23.38982935]
[1718866706104,10.88756569,135.57,135.56,16.05982935]
[1718866706305,10.88756569,135.57,135.56,23.38982935]
[1718866706740,7.33,135.62,135.57,7.3758]
[1718866707025,7.33,135.62,135.58,7.3756]
[1718866708120,7.3736,135.62,135.57,14.7061]
[1718866708319,7.33,135.61,135.57,7.3761]
[1718866712237,14.7036,135.62,135.57,14.7061]
[1718866713835,14.7036,135.62,135.58,7.3756]
[1718866714214,14.7036,135.62,135.57,14.706]
[1718866714427,10.87127111,135.58,135.57,14.706]
[1718866715215,14.7036,135.62,135.57,14.706]
[1718866715632,14.7036,135.62,135.57,14.4981161]
[1718866716231,14.7031,135.63,135.58,14.7055]
[1718866717221,21.27937636,135.68,135.62,7.33]
[1718866717545,7.3706,135.68,135.63,14.7029]
[1718866717709,7.3706,135.68,135.64,7.33]
[1718866718923,7.71236431,135.71,135.65,7.3717]
[1718866719125,7.33,135.71,135.65,7.33]
[1718866719342,6.00857713,135.75,135.69,7.33]
[1718866719515,7.3681,135.72,135.66,7.3709]
[1718866719727,7.3687,135.71,135.68,7.33]
[1718866719923,7.3681,135.72,135.68,7.33]
[1718866721545,7.33,135.73,135.68,14.7002]
[1718866721927,14.6977,135.73,135.68,14.7002]
[1718866722129,14.6977,135.73,135.68,7.33]
[1718866722931,14.6995,135.7,135.64,0.17]
[1718866723139,14.6995,135.7,135.65,7.33]
[1718866723342,14.6995,135.7,135.65,14.7017]
[1718866723843,14.6995,135.7,135.65,7.33]
[1718866724363,14.6995,135.7,135.65,14.7017]
[1718866724944,7.33,135.7,135.65,14.7017]
[1718866725145,7.33,135.7,135.66,7.3712]
[1718866727922,7.3687,135.71,135.66,7.3712]
[1718866728123,7.33,135.7,135.66,7.3712]
[1718866728338,7.33,135.7,135.65,14.7016]
[1718866729146,7.33,135.7,135.65,7.3716]
[1718866729351,7.33,135.7,135.66,7.3713]
[1718866730140,14.6989,135.71,135.66,14.7013]
[1718866730754,7.33,135.71,135.66,14.7013]
[1718866731256,14.6986,135.71,135.66,14.7013]
[1718866734458,0.17,135.68,135.59,16.4563]
[1718866734637,14.7027,135.64,135.59,31.1611]
[1718866734836,7.33,135.64,135.59,31.1611]
[1718866735336,7.33,135.64,135.6,7.3745]
[1718866735536,7.33,135.65,135.6,14.7045]
[1718866735753,7.33,135.65,135.61,7.374]
[1718866736060,7.33,135.65,135.62,7.3733]
[1718866736258,14.7015,135.66,135.61,14.7039]
[1718866736434,7.33,135.65,135.61,7.3739]
[1718866738350,7.33,135.64,135.6,7.3743]
[1718866739270,7.5,135.66,135.59,16.4563]
[1718866739436,7.33,135.62,135.59,16.4563]
[1718866739766,0.34,135.65,135.59,16.4563]
[1718866739767,7.33,135.63,135.59,16.4563]
[1718866740872,7.33,135.62,135.59,16.4563]
[1718866741367,7.33,135.62,135.58,13.6057]
[1718866741666,7.33,135.62,135.58,7.3755]
[1718866742343,7.33,135.61,135.57,7.3761]
[1718866743559,7.33,135.6,135.57,7.3761]
[1718866744151,7.33,135.61,135.58,7.3757]
[1718866745469,7.33,135.63,135.59,7.3748]
[1718866745840,7.33,135.62,135.58,7.3754]
[1718866748944,7.33,135.62,135.59,7.3751]
[1718866750470,7.33,135.62,135.58,14.7054]
[1718866750648,7.33,135.62,135.58,7.3754]
[1718866750839,7.33,135.62,135.57,7.33]
[1718866750840,7.33,135.62,135.56,24.10682935]
[1718866751045,7.33,135.61,135.57,14.7059]
[1718866751667,7.3762,135.57,135.56,8.68302935]
[1718866751868,7.33,135.58,135.56,8.68302935]
[1718866752044,7.33,135.59,135.56,8.68302935]
[1718866752589,7.3753,135.59,135.56,8.68302935]
[1718866752861,14.7053,135.59,135.56,8.68302935]
[1718866753473,7.33,135.62,135.57,14.7058]
[1718866753642,7.33,135.62,135.58,7.3756]
[1718866754438,14.7035,135.62,135.57,14.706]
[1718866755669,7.3733,135.63,135.57,14.706]
[1718866755966,14.7035,135.62,135.57,14.706]
[1718866756862,7.3735,135.62,135.57,14.706]
[1718866757065,14.7035,135.62,135.57,14.706]
[1718866757279,7.33,135.61,135.57,14.706]
[1718866757770,7.3726,135.64,135.58,31.0174]
[1718866757959,7.3726,135.64,135.59,14.7051]
[1718866757960,14.7026,135.64,135.59,14.7051]
[1718866759468,7.33,135.63,135.59,7.3751]
[1718866760166,7.33,135.64,135.6,7.3744]
[1718866760350,7.33,135.64,135.6,14.7044]
[1718866761670,7.7127787,135.69,135.63,7.33]
[1718866762167,7.3692,135.7,135.65,7.33]
[1718866762353,7.3687,135.71,135.65,14.7017]
[1718866762544,14.6987,135.71,135.66,7.33]
[1718866762741,7.3683,135.72,135.66,14.7013]
[1718866762967,7.33,135.71,135.67,1.4717252]
[1718866763176,7.33,135.71,135.67,1.47175158]
[1718866763357,14.6983,135.72,135.67,8.80175158]
[1718866763749,7.3683,135.72,135.67,8.80175158]
[1718866764068,5.92695637,135.73,135.67,16.17215158]
[1718866764275,7.33,135.72,135.66,7.33]
[1718866764572,7.33,135.71,135.66,7.33]
[1718866765342,14.6987,135.71,135.66,14.7011]
[1718866766270,13.64172712,135.74,135.67,7.3706]
[1718866766543,14.6987,135.71,135.66,14.7011]
[1718866766749,7.33,135.71,135.66,14.7011]
[1718866767462,7.33,135.72,135.68,7.3702]
[1718866767951,7.3677,135.73,135.68,7.3702]
[1718866768145,14.6975,135.73,135.68,7.37]
[1718866768369,14.6975,135.73,135.68,14.7]
[1718866768672,7.33,135.73,135.68,14.7]
[1718866768873,14.6976,135.73,135.68,14.7]
[1718866769369,7.3676,135.73,135.68,14.7]
[1718866769549,7.33,135.73,135.68,14.7]
[1718866770770,15.03791674,135.76,135.68,0.17]
[1718866770978,14.6963,135.76,135.71,7.33]
[1718866771970,14.6963,135.76,135.71,14.6985]
[1718866772571,7.33,135.76,135.71,14.6985]
[1718866772872,7.3655,135.77,135.72,7.3679]
[1718866773055,7.33,135.76,135.72,7.3679]
[1718866773451,18.4109,135.79,135.72,7.3679]
[1718866773452,7.365,135.78,135.73,14.6974]
[1718866773662,14.695,135.78,135.73,14.6974]
[1718866774374,14.695,135.78,135.73,7.33]
[1718866774945,14.6943,135.79,135.74,14.6969]
[1718866775145,7.3643,135.79,135.74,7.33]
[1718866775378,7.3643,135.79,135.75,7.33]
[1718866775756,14.6943,135.79,135.74,7.33]
[1718866775952,14.6943,135.79,135.74,14.697]
[1718866776152,15.06709151,135.81,135.75,14.6964]
[1718866776356,14.6933,135.81,135.76,14.6958]
[1718866776553,14.6933,135.81,135.77,1.47111631]
[1718866776765,7.3629,135.82,135.77,16.16641631]
[1718866776954,7.3629,135.82,135.78,8.80100795]
[1718866778260,7.3629,135.82,135.73,54.3511]
[1718866778261,14.6929,135.82,135.76,14.6957]
[1718866778467,14.6929,135.82,135.77,1.47068291]
[1718866778648,14.6929,135.82,135.77,8.80068291]
[1718866779060,14.6929,135.82,135.77,16.16598291]
[1718866779369,26.10431672,135.87,135.79,14.694]
[1718866779667,14.6912,135.85,135.8,8.80138247]
[1718866780273,14.6906,135.86,135.81,7.33]
[1718866780464,14.6906,135.86,135.82,1.4711658]
[1718866780772,7.3601,135.87,135.82,8.8011658]
[1718866781072,7.3597,135.88,135.84,7.33]
[1718866781263,39.6072,135.92,135.84,14.6912]
[1718866781573,7.3597,135.88,135.84,7.33]
[1718866782070,7.3597,135.88,135.83,7.3618]
[1718866782273,14.689,135.89,135.84,7.3615]
[1718866783051,21.06479935,135.92,135.85,7.361]
[1718866783259,21.06479935,135.92,135.85,14.691]
[1718866783260,7.33,135.9,135.85,14.691]
[1718866783468,21.06479935,135.92,135.84,16.5159]
[1718866783649,7.3596,135.88,135.84,16.5159]
[1718866783850,7.359,135.89,135.84,16.5159]
[1718866784367,7.3594,135.88,135.84,16.5159]
[1718866785079,39.45809935,135.92,135.84,23.8771]
[1718866785381,7.3589,135.89,135.84,23.8773]
[1718866785976,7.3583,135.9,135.85,7.361]
[1718866786354,7.3589,135.89,135.84,23.8773]
[1718866787982,0.17,135.9,135.8,15.1287]
[1718866788359,0.34,135.9,135.83,7.3618]
[1718866788580,7.3592,135.89,135.83,7.3618]
[1718866789088,7.3592,135.89,135.84,7.3615]
[1718866789460,21.88,135.91,135.85,7.3605]
[1718866789772,21.88,135.91,135.85,7.3607]
[1718866790687,21.88,135.91,135.84,7.3613]
[1718866790980,7.3585,135.9,135.84,7.3613]
[1718866791591,0.34,135.91,135.83,7.362]
[1718866791877,0.34,135.9,135.83,7.362]
[1718866792860,63.23220203,135.92,135.84,7.3613]
[1718866793061,7.3592,135.89,135.81,0.34]
[1718866793361,7.3592,135.89,135.84,7.3612]
[1718866793679,7.3584,135.9,135.84,7.3612]
[1718866794060,7.3591,135.89,135.84,7.3612]
[1718866794487,7.3591,135.89,135.83,7.3619]
[1718866795155,0.34,135.91,135.83,7.3619]
[1718866795475,0.17,135.86,135.77,16.2844]
[1718866795656,7.3626,135.83,135.77,23.6497]
[1718866795985,46.8332,135.82,135.73,16.2844]
[1718866796186,7.3652,135.78,135.73,16.2844]
[1718866796668,7.3652,135.78,135.73,23.6519]
[1718866797085,7.3644,135.79,135.73,7.3675]
[1718866797270,35.3448,135.8,135.71,7.3683]
[1718866797576,16.7653,135.8,135.7,15.0718]
[1718866797780,16.7653,135.8,135.71,18.4211]
[1718866797979,7.3643,135.79,135.74,7.3669]
[1718866798478,23.9592,135.8,135.71,18.4211]
[1718866798680,7.3639,135.8,135.74,7.3665]
[1718866798879,7.3639,135.8,135.72,0.17]
[1718866799091,7.5334,135.81,135.75,7.3663]
[1718866799291,7.5337,135.8,135.74,7.3668]
[1718866799487,7.3644,135.79,135.74,7.3668]
[1718866799666,7.365,135.78,135.7,15.5818]
[1718866799863,7.3645,135.79,135.73,7.3674]
[1718866800184,7.3649,135.78,135.73,7.3674]
[1718866800780,28.5952,135.82,135.71,18.4213]
[1718866800986,0.17,135.81,135.75,7.3663]
[1718866801372,0.17,135.81,135.69,6.4539]
[1718866801373,22.22,135.81,135.69,24.8782]
[1718866801587,7.3662,135.76,135.7,7.3688]
[1718866801891,7.3667,135.75,135.69,7.3695]
[1718866802268,7.367,135.74,135.69,7.3695]
[1718866802474,7.3667,135.75,135.69,7.3695]
[1718866802667,7.367,135.74,135.69,7.3695]
[1718866802976,7.3666,135.75,135.7,7.3691]
[1718866803178,7.5361,135.76,135.7,7.3691]
[1718866803369,7.7054,135.77,135.69,18.4241]
[1718866803570,7.3665,135.75,135.7,7.3688]
[1718866804495,7.3661,135.76,135.7,7.3688]
[1718866804676,7.3661,135.76,135.71,7.3686]
[1718866805169,7.3661,135.76,135.7,7.369]
[1718866805364,7.87584185,135.78,135.68,18.7643]
[1718866805365,7.70584185,135.78,135.68,18.7643]
[1718866805569,7.3654,135.77,135.71,7.3682]
[1718866805764,7.70584185,135.78,135.71,7.3682]
[1718866805765,7.366,135.76,135.71,7.3682]
[1718866805969,7.366,135.76,135.68,18.7643]
[1718866806398,7.366,135.76,135.7,7.3689]
[1718866806770,7.3666,135.75,135.7,7.3689]
[1718866806976,7.3692,135.7,135.65,7.3719]
[1718866807277,7.3698,135.69,135.63,7.3725]
[1718866807476,7.3693,135.7,135.64,7.372]
[1718866808182,7.3693,135.7,135.65,7.3718]
[1718866808390,7.3695,135.7,135.65,7.3718]
[1718866808801,7.3688,135.71,135.65,7.3718]
[1718866808975,7.3683,135.72,135.67,7.3708]
[1718866809174,7.3677,135.73,135.64,18.4311]
[1718866809480,13.9414,135.74,135.62,44.7754]
[1718866809785,0.17,135.73,135.63,0.51]
[1718866809982,7.3684,135.72,135.64,0.17]
[1718866810290,7.3688,135.71,135.65,7.3715]
[1718866810492,0.34,135.73,135.65,7.3715]
[1718866810697,7.3688,135.71,135.65,7.3715]
[1718866811000,7.3681,135.72,135.63,18.9424]
[1718866811203,7.3681,135.72,135.67,7.3705]
[1718866811386,7.3677,135.73,135.68,7.3701]
[1718866811590,13.9414,135.74,135.66,0.17]
[1718866811801,13.9414,135.74,135.68,7.3699]
[1718866811976,13.9414,135.74,135.66,0.34]
[1718866812176,7.3676,135.73,135.68,7.37]
[1718866812705,6.5742,135.74,135.69,7.3697]
[1718866812706,13.9414,135.74,135.69,7.3697]
[1718866812878,13.9414,135.74,135.68,7.37]
[1718866813697,13.9414,135.74,135.69,7.3697]
[1718866813893,7.3676,135.73,135.68,7.37]
[1718866814492,13.9413,135.74,135.69,7.3695]
[1718866814805,7.3676,135.73,135.68,7.37]
[1718866815114,6.5742,135.74,135.63,18.6022]
[1718866815305,0.34,135.73,135.64,0.34]
[1718866816807,7.3684,135.72,135.67,7.3705]
[1718866816989,7.3676,135.73,135.68,7.3702]
[1718866817911,6.5742,135.74,135.67,7.3706]
[1718866817912,7.3681,135.72,135.67,7.3706]
[1718866818577,6.7442,135.74,135.62,41.0392]
[1718866818578,0.34,135.73,135.62,41.0392]
[1718866818799,7.3699,135.69,135.64,7.3721]
[1718866819009,7.3687,135.71,135.66,7.3711]
[1718866819606,23.6432,135.72,135.66,7.3711]
[1718866819903,23.6432,135.72,135.62,22.6054]
[1718866819904,15.9349,135.72,135.65,18.4297]
[1718866820206,23.303,135.72,135.67,7.3704]
[1718866820586,28.4542,135.74,135.66,18.597]
[1718866820784,6.5742,135.74,135.69,7.3693]
[1718866820985,13.9412,135.74,135.69,7.3693]
[1718866821207,6.5742,135.74,135.65,0.17]
[1718866821408,7.3677,135.73,135.68,7.37]
[1718866821612,6.5742,135.74,135.66,0.17]
[1718866822488,6.5742,135.74,135.68,7.3699]
[1718866822811,6.5742,135.74,135.7,7.369]
[1718866823414,7.7101893,135.76,135.69,0.17]
[1718866823606,29.2837,135.78,135.69,0.68]
[1718866823784,29.2837,135.78,135.72,7.3679]
[1718866823982,7.3654,135.77,135.72,7.3679]
[1718866824705,21.9188,135.78,135.73,7.3674]
[1718866825009,21.9188,135.78,135.72,7.3678]
[1718866825213,7.3689,135.71,135.66,7.3708]
[1718866825385,7.3689,135.71,135.66,7.3712]
[1718866825589,7.3682,135.72,135.67,7.3707]
[1718866825800,7.3677,135.73,135.68,7.3702]
[1718866825986,7.3672,135.74,135.68,7.3702]
[1718866826206,7.3667,135.75,135.7,7.369]
[1718866826581,7.3661,135.76,135.7,7.369]
[1718866827585,7.3665,135.75,135.7,7.369]
[1718866827899,7.3665,135.75,135.66,7.3712]
[1718866827900,7.3685,135.72,135.66,7.3712]
[1718866828113,7.3685,135.72,135.64,34.1324]
[1718866828114,7.37,135.69,135.64,7.3722]
[1718866828419,7.37,135.69,135.63,7.3726]
[1718866828717,7.37,135.69,135.64,7.3722]
[1718866829411,7.3693,135.7,135.64,7.3722]
[1718866829610,7.3693,135.7,135.65,7.3715]
[1718866830409,7.3688,135.71,135.65,7.3715]
[1718866830611,7.3692,135.7,135.65,7.3715]
[1718866831515,7.3688,135.71,135.65,7.3715]
[1718866832115,7.3693,135.7,135.65,7.3715]
[1718866832409,7.3688,135.71,135.65,7.3715]
[1718866833215,7.3688,135.71,135.66,7.3713]
[1718866833515,7.3688,135.71,135.65,7.3718]
[1718866833805,28.895,135.72,135.64,18.431]
[1718866834002,21.5268,135.72,135.68,7.3702]
[1718866834203,15.1028,135.72,135.68,7.3702]
[1718866834389,6.3629,135.75,135.69,7.3695]
[1718866834705,27.3673,135.74,135.68,7.37]
[1718866834914,7.3676,135.73,135.68,7.37]
[1718866835211,7.3672,135.74,135.67,15.8371]
[1718866835503,7.3665,135.75,135.67,15.8371]
[1718866835704,7.3665,135.75,135.69,7.3694]
[1718866835915,7.367,135.74,135.69,7.3695]
[1718866837009,7.3668,135.75,135.69,7.3695]
[1718866837205,7.3672,135.74,135.69,7.3695]
[1718866837402,15.3404,135.76,135.7,7.3691]
[1718866837801,7.3668,135.75,135.7,7.3691]
[1718866838119,15.3404,135.76,135.67,15.8371]
[1718866838421,0.17,135.75,135.67,15.8371]
[1718866838921,7.3676,135.73,135.68,7.3699]
[1718866839215,7.3672,135.74,135.68,7.3699]
[1718866840315,15.3404,135.76,135.67,15.8371]
[1718866840606,0.17,135.75,135.67,15.8371]
[1718866840813,7.5368,135.75,135.69,7.3694]
[1718866841124,7.3671,135.74,135.69,7.3694]
[1718866842009,7.3681,135.72,135.66,7.3711]
[1718866842217,7.3692,135.7,135.65,7.3715]
[1718866842416,7.3688,135.71,135.65,7.3715]
[1718866842712,7.3695,135.7,135.64,16.3338]
[1718866842891,7.3698,135.69,135.64,16.3338]
[1718866843309,7.3698,135.69,135.64,23.7059]
[1718866843709,7.3693,135.7,135.65,7.3718]
[1718866844116,7.5389,135.71,135.65,7.3718]
[1718866844798,7.3693,135.7,135.65,7.3718]
[1718866845618,7.3688,135.71,135.66,7.3713]
[1718866845916,7.3696,135.7,135.65,7.3719]
[1718866846316,7.3696,135.7,135.64,16.3338]
[1718866846723,7.3696,135.7,135.65,7.3716]
[1718866847594,7.3696,135.7,135.64,23.706]
[1718866847794,7.3697,135.69,135.64,23.706]
[1718866849430,7.3705,135.68,135.64,16.3338]
[1718866849803,7.3705,135.68,135.62,0.17]
[1718866850147,7.3705,135.68,135.63,7.3726]
[1718866850814,18.422,135.71,135.63,7.3726]
[1718866850815,7.3699,135.69,135.63,7.3726]
[1718866851204,7.3694,135.7,135.65,7.3718]
[1718866851405,7.3694,135.7,135.64,7.3722]
[1718866851625,7.3697,135.69,135.64,7.3722]
[1718866853418,7.3697,135.69,135.63,7.3727]
[1718866854005,7.3712,135.67,135.61,13.8387]
[1718866854202,16.4657,135.7,135.6,23.2936]
[1718866854203,18.4243,135.69,135.6,23.2936]
[1718866854425,7.3716,135.66,135.61,7.3738]
[1718866854613,7.371,135.67,135.61,7.3738]
[1718866855529,7.371,135.67,135.62,7.3735]
[1718866857514,0.51,135.68,135.6,15.9192]
[1718866857912,0.17,135.66,135.56,8.68302935]
[1718866858230,0.68,135.66,135.56,8.68302935]
[1718866858432,19.1097,135.66,135.56,8.68302935]
[1718866858628,32.40566691,135.66,135.56,27.12492935]
[1718866858814,7.3731,135.63,135.58,7.3754]
[1718866860307,7.3731,135.63,135.57,7.376]